fUST/lending_fUST_20250729
["ID","MTS","AMOUNT","RATE_DAILY","PERIOD"]
[375910928,1753781447827,-2479.91,0.00019452,2]
[375910929,1753781447836,-460.0,0.00019452,2]
[375910930,1753781447846,-460.0,0.00019452,2]
[375910931,1753781447856,-460.0,0.00019452,2]
[375910932,1753781447865,-3509.44,0.00019452,2]
[375910933,1753781447875,-460.0,0.00019452,2]
[375910934,1753781447884,-460.0,0.00019452,2]
[375910935,1753781447894,-460.0,0.00019452,2]
[375910936,1753781447903,-460.0,0.00019452,2]
[375910938,1753781447913,-1062.43,0.00019452,2]
[375910940,1753781447922,-460.0,0.00019452,2]
[375910942,1753781447932,-460.0,0.00019452,2]
[375910944,1753781447941,-460.0,0.00019452,2]
[375910946,1753781447950,-460.0,0.00019452,2]
[375910948,1753781447960,-460.0,0.00019452,2]
[375910950,1753781447970,-600.2,0.00019452,2]
[375910952,1753781447979,-460.0,0.00019452,2]
[375910954,1753781447988,-460.0,0.00019452,2]
[375910956,1753781448000,-460.0,0.00019452,2]
[375910958,1753781448009,-860.1,0.00019452,2]
[375910960,1753781448019,-460.0,0.00019452,2]
[375910962,1753781448029,-460.0,0.00019452,2]
[375910964,1753781448038,-460.0,0.00019452,2]
[375910966,1753781448048,-460.0,0.00019452,2]
[375910968,1753781448057,-460.0,0.00019452,2]
[375910970,1753781448068,-2525.88,0.00019452,2]
[375910972,1753781448078,-460.0,0.00019452,2]
[375910974,1753781448087,-460.0,0.00019452,2]
[375910976,1753781448096,-460.0,0.00019452,2]
[375910978,1753781448107,-460.0,0.00019452,2]
[375910980,1753781448117,-460.0,0.00019452,2]
[375910982,1753781448126,-556.94,0.00019452,2]
[375910984,1753781448136,-460.0,0.00019452,2]
[375910986,1753781448145,-460.0,0.00019452,2]
[375910989,1753781448155,-2339.21,0.00019452,2]
[375910990,1753781448165,-460.0,0.00019452,2]
[375910993,1753781448175,-460.0,0.00019452,2]
[375910995,1753781448185,-2846.11,0.00019452,2]
[375910996,1753781448194,-460.0,0.00019452,2]
[375910998,1753781448204,-460.0,0.00019452,2]
[375911000,1753781448213,-460.0,0.00019452,2]
[375911002,1753781448223,-460.0,0.00019452,2]
[375911005,1753781448232,-1048.58,0.00019452,2]
[375911007,1753781448241,-612.45,0.00019452,2]
[375911008,1753781448250,-460.0,0.00019452,2]
[375911010,1753781448260,-460.0,0.00019452,2]
[375911013,1753781448270,-460.0,0.00019452,2]
[375911014,1753781448279,-460.0,0.00019452,2]
[375911016,1753781448289,-460.0,0.00019452,2]
[375911018,1753781448299,-460.0,0.00019452,2]
[375911020,1753781448308,-460.0,0.00019452,2]
[375911022,1753781448317,-460.0,0.00019452,2]
[375911024,1753781448327,-2561.88,0.00019452,2]
[375911026,1753781448336,-1075.06,0.00019452,2]
[375911028,1753781448345,-460.0,0.00019452,2]
[375911030,1753781448356,-460.0,0.00019452,2]
[375911033,1753781448366,-529.98382494,0.00019452,2]
[375911035,1753781448376,-460.0,0.00019452,2]
[375911037,1753781448385,-830.09,0.00019452,2]
[375911039,1753781448395,-460.0,0.00019452,2]
[375911041,1753781448405,-552.31577037,0.00019452,2]
[375911043,1753781448415,-963.24,0.00019452,2]
[375911045,1753781448425,-460.0,0.00019452,2]
[375911046,1753781448438,-460.0,0.00019452,2]
[375911048,1753781448448,-460.0,0.00019452,2]
[375911051,1753781448458,-460.0,0.00019452,2]
[375911053,1753781448470,-155.0,0.00019452,2]
[375911055,1753781448481,-460.0,0.00019452,2]
[375911057,1753781448491,-460.0,0.00019452,2]
[375911059,1753781448501,-460.0,0.00019452,2]
[375911061,1753781448511,-460.0,0.00019452,2]
[375911063,1753781448521,-2743.49,0.00019452,2]
[375911065,1753781448531,-517.05424313,0.00019452,2]
[375911067,1753781448541,-460.0,0.00019452,2]
[375911069,1753781448551,-598.25,0.00019452,2]
[375911071,1753781448560,-460.0,0.00019452,2]
[375911073,1753781448570,-525.32,0.00019452,2]
[375911075,1753781448580,-462.54203478,0.00019452,2]
[375911076,1753781448591,-460.88885659,0.00019452,2]
[375911079,1753781448601,-460.0,0.00019452,2]
[375911080,1753781448611,-1168.26,0.00019452,2]
[375911082,1753781448622,-378.9579441,0.00019452,2]
[375911084,1753781448632,-755.25,0.00019452,2]
[375911086,1753781448642,-541.9623873,0.00019452,2]
[375911098,1753781448734,-460.0,0.00019452,2]
[375911100,1753781448744,-6569.3,0.00019452,2]
[375911102,1753781448754,-460.0,0.00019452,2]
[375911104,1753781448763,-460.0,0.00019452,2]
[375911106,1753781448773,-689.14,0.00019452,2]
[375911108,1753781448782,-460.0,0.00019452,2]
[375911109,1753781448791,-882.14,0.00019452,2]
[375911111,1753781448801,-464.0589326,0.00019452,2]
[375911113,1753781448810,-500.0,0.00019452,2]
[375911115,1753781448820,-500.0,0.00019473,2]
[375911117,1753781448829,-500.0,0.00019473,2]
[375911119,1753781448839,-500.0,0.00019473,2]
[375911121,1753781448851,-191.93553536,0.00019473,2]
[375911123,1753781448861,-500.0,0.00019473,2]
[375911125,1753781448870,-500.0,0.00019473,2]
[375911127,1753781448880,-151.0,0.000195,2]
[375911129,1753781448890,-151.0,0.000195,2]
[375911131,1753781448899,-836.66927797,0.0001959,2]
[375911133,1753781448908,-151.0,0.000196,2]
[375911135,1753781448918,-151.0,0.000196,2]
[375911137,1753781448927,-216.1031716,0.00019693,2]
[375911139,1753781448936,-160.0,0.00019694,2]
[375911141,1753781448946,-160.0,0.00019694,2]
[375911143,1753781448955,-160.0,0.00019694,2]
[375911145,1753781448964,-160.0,0.00019694,2]
[375911147,1753781448973,-160.0,0.00019695,2]
[375911149,1753781448983,-841.06558547,0.00019695,2]
[375911151,1753781448994,-12637.12721421,0.00019695,2]
[375911153,1753781449004,-214.91980558,0.00019695,2]
[375911155,1753781449013,-460.5085953,0.00019695,2]
[375911157,1753781449023,-231.39372452,0.00019696,2]
[375911159,1753781449033,-160.0,0.00019696,2]
[375911160,1753781449042,-526.67226028,0.00019696,2]
[375911162,1753781449051,-436.81858891,0.00019721,2]
[375911163,1753781449061,-1000.0,0.00019721,2]
[375911165,1753781449070,-1246.57,0.00019725,2]
[375911167,1753781449081,-1246.57,0.00019725,2]
[375911169,1753781449090,-1246.57,0.00019725,2]
[375911171,1753781449100,-1246.57,0.00019725,2]
[375911173,1753781449110,-1246.57,0.00019725,2]
[375911175,1753781449120,-1246.57,0.00019725,2]
[375911177,1753781449128,-1246.57,0.00019725,2]
[375911178,1753781449138,-1246.57,0.00019725,2]
[375911180,1753781449148,-1246.57,0.00019725,2]
[375911182,1753781449157,-1246.78193083,0.00019725,2]
[375911184,1753781449167,-460.0,0.00019726,2]
[375911186,1753781449177,-460.0,0.00019726,2]
[375911188,1753781449187,-460.0,0.00019726,2]
[375911190,1753781449196,-460.0,0.00019726,2]
[375911192,1753781449205,-460.0,0.00019726,2]
[375911194,1753781449215,-460.0,0.00019726,2]
[375911196,1753781449225,-245.36988716,0.00019726,2]
[375911198,1753781449234,-460.0,0.00019726,2]
[375911200,1753781449244,-460.0,0.00019726,2]
[375911202,1753781449253,-460.0,0.00019726,2]
[375911204,1753781449263,-460.0,0.00019726,2]
[375911206,1753781449273,-460.0,0.00019726,2]
[375911208,1753781449282,-460.0,0.00019726,2]
[375911210,1753781449291,-460.0,0.00019726,2]
[375911212,1753781449301,-460.0,0.00019726,2]
[375911213,1753781449310,-460.0,0.00019726,2]
[375911215,1753781449319,-460.0,0.00019726,2]
[375911217,1753781449328,-460.0,0.00019726,2]
[375911219,1753781449337,-460.0,0.00019726,2]
[375911221,1753781449347,-460.0,0.00019726,2]
[375911223,1753781449358,-460.0,0.00019726,2]
[375911225,1753781449367,-460.0,0.00019726,2]
[375911227,1753781449376,-460.0,0.00019726,2]
[375911229,1753781449385,-460.0,0.00019726,2]
[375911231,1753781449396,-460.0,0.00019726,2]
[375911233,1753781449405,-460.0,0.00019726,2]
[375911235,1753781449414,-460.0,0.00019726,2]
[375911237,1753781449424,-460.0,0.00019726,2]
[375911239,1753781449432,-460.0,0.00019726,2]
[375911241,1753781449442,-460.0,0.00019726,2]
[375911243,1753781449451,-460.0,0.00019726,2]
[375911245,1753781449462,-460.0,0.00019726,2]
[375911247,1753781449471,-460.0,0.00019726,2]
[375911249,1753781449480,-460.0,0.00019726,2]
[375911251,1753781449489,-460.0,0.00019726,2]
[375911253,1753781449499,-460.0,0.00019726,2]
[375911254,1753781449510,-460.0,0.00019726,2]
[375911256,1753781449520,-460.0,0.00019726,2]
[375911258,1753781449529,-506.64579049,0.00019726,2]
[375911260,1753781449538,-460.0,0.00019726,2]
[375911262,1753781449548,-460.0,0.00019726,2]
[375911264,1753781449557,-460.0,0.00019726,2]
[375911266,1753781449566,-460.0,0.00019726,2]
[375911268,1753781449576,-276.68737774,0.00019726,2]
[375911270,1753781449585,-460.0,0.00019726,2]
[375911272,1753781449595,-990.09,0.00019726,2]
[375911274,1753781449605,-460.0,0.00019726,2]
[375911276,1753781449615,-463.68114907,0.00019726,2]
[375911278,1753781449624,-460.0,0.00019726,2]
[375911280,1753781449633,-460.0,0.00019726,2]
[375911282,1753781449642,-585.43,0.00019726,2]
[375911284,1753781449652,-460.0,0.00019726,2]
[375911285,1753781449661,-460.0,0.00019726,2]
[375911287,1753781449670,-460.0,0.00019726,2]
[375911289,1753781449680,-460.0,0.00019726,2]
[375911291,1753781449689,-460.0,0.00019726,2]
[375911293,1753781449699,-460.0,0.00019726,2]
[375911295,1753781449708,-460.0,0.00019726,2]
[375911297,1753781449718,-460.0,0.00019726,2]
[375911299,1753781449727,-460.0,0.00019726,2]
[375911301,1753781449737,-484.99673636,0.00019726,2]
[375911303,1753781449746,-538.32,0.00019726,2]
[375911305,1753781449757,-7581.25,0.00019726,2]
[375911307,1753781449766,-1112.06,0.00019726,2]
[375911309,1753781449776,-460.0,0.00019726,2]
[375911311,1753781449785,-460.0,0.00019726,2]
[375911313,1753781449794,-460.0,0.00019726,2]
[375911314,1753781449804,-460.0,0.00019726,2]
[375911316,1753781449813,-460.0,0.00019726,2]
[375911318,1753781449823,-2405.1,0.00019726,2]
[375911320,1753781449833,-460.0,0.00019726,2]
[375911322,1753781449844,-460.0,0.00019726,2]
[375911324,1753781449855,-460.0,0.00019726,2]
[375911326,1753781449865,-460.0,0.00019726,2]
[375911328,1753781449875,-460.0,0.00019726,2]
[375911330,1753781449885,-356.76579242,0.00019726,2]
[375911332,1753781449895,-460.0,0.00019726,2]
[375911334,1753781449905,-460.0,0.00019726,2]
[375911336,1753781449914,-460.0,0.00019726,2]
[375911338,1753781449924,-460.0,0.00019726,2]
[375911340,1753781449933,-1564.59,0.00019726,2]
[375911342,1753781449943,-460.0,0.00019726,2]
[375911344,1753781449952,-460.0,0.00019726,2]
[375911345,1753781449962,-460.0,0.00019726,2]
[375911347,1753781449971,-460.0,0.00019726,2]
[375911349,1753781449981,-460.0,0.00019726,2]
[375911351,1753781449990,-460.0,0.00019726,2]
[375911353,1753781450005,-307.64298025,0.00019726,2]
[375911355,1753781450015,-460.0,0.00019726,2]
[375911357,1753781450024,-279.86903766,0.00019726,2]
[375911359,1753781450034,-460.0,0.00019726,2]
[375911361,1753781450044,-460.0,0.00019726,2]
[375911363,1753781450053,-556.13,0.00019726,2]
[375911365,1753781450062,-460.0,0.00019726,2]
[375911367,1753781450073,-460.0,0.00019726,2]
[375911369,1753781450083,-460.0,0.00019726,2]
[375911371,1753781450093,-460.0,0.00019726,2]
[375911373,1753781450102,-460.0,0.00019726,2]
[375911375,1753781450111,-460.0,0.00019726,2]
[375911377,1753781450120,-460.0,0.00019726,2]
[375911378,1753781450129,-469.5,0.00019726,2]
[375911380,1753781450139,-460.0,0.00019726,2]
[375911382,1753781450148,-460.0,0.00019726,2]
[375911385,1753781450162,-463.9,0.00019726,2]
[375911387,1753781450172,-460.0,0.00019726,2]
[375911397,1753781450255,-460.0,0.00019726,2]
[375911399,1753781450265,-460.0,0.00019726,2]
[375911400,1753781450274,-460.0,0.00019726,2]
[375911402,1753781450283,-1123.99,0.00019726,2]
[375911404,1753781450293,-460.0,0.00019726,2]
[375911406,1753781450302,-562.72875358,0.00019726,2]
[375911408,1753781450312,-460.0,0.00019726,2]
[375911410,1753781450321,-460.0,0.00019726,2]
[375911412,1753781450330,-460.0,0.00019726,2]
[375911414,1753781450340,-460.0,0.00019726,2]
[375911416,1753781450349,-460.0,0.00019726,2]
[375911418,1753781450359,-460.0,0.00019726,2]
[375911420,1753781450368,-3334.49,0.00019726,2]
[375911422,1753781450378,-460.0,0.00019726,2]
[375911424,1753781450387,-1965.51,0.00019726,2]
[375911426,1753781450398,-460.0,0.00019726,2]
[375911428,1753781450407,-460.0,0.00019726,2]
[375911430,1753781450416,-460.0,0.00019726,2]
[375911432,1753781450426,-599.02740519,0.00019726,2]
[375911434,1753781450435,-1199.54,0.00019726,2]
[375911436,1753781450445,-460.0,0.00019726,2]
[375911437,1753781450454,-460.0,0.00019726,2]
[375911439,1753781450465,-460.0,0.00019726,2]
[375911441,1753781450475,-460.0,0.00019726,2]
[375911443,1753781450484,-460.0,0.00019726,2]
[375911445,1753781450493,-460.0,0.00019726,2]
[375911447,1753781450502,-460.0,0.00019726,2]
[375911449,1753781450512,-460.0,0.00019726,2]
[375911451,1753781450523,-460.0,0.00019726,2]
[375911453,1753781450532,-460.0,0.00019726,2]
[375911455,1753781450542,-460.0,0.00019726,2]
[375911457,1753781450551,-460.0,0.00019726,2]
[375911459,1753781450560,-460.0,0.00019726,2]
[375911461,1753781450570,-460.0,0.00019726,2]
[375911463,1753781450579,-460.0,0.00019726,2]
[375911465,1753781450589,-460.0,0.00019726,2]
[375911467,1753781450599,-460.0,0.00019726,2]
[375911468,1753781450609,-460.0,0.00019726,2]
[375911470,1753781450618,-460.0,0.00019726,2]
[375911472,1753781450627,-175.86896416,0.00019726,2]
[375911474,1753781450637,-460.0,0.00019726,2]
[375911476,1753781450648,-460.0,0.00019726,2]
[375911478,1753781450657,-460.0,0.00019726,2]
[375911480,1753781450667,-460.0,0.00019726,2]
[375911482,1753781450676,-912.33,0.00019726,2]
[375911484,1753781450686,-460.0,0.00019726,2]
[375911486,1753781450695,-460.0,0.00019726,2]
[375911488,1753781450704,-4003.44,0.00019726,2]
[375911490,1753781450714,-460.0,0.00019726,2]
[375911492,1753781450723,-472.57,0.00019726,2]
[375911494,1753781450732,-460.0,0.00019726,2]
[375911496,1753781450741,-684.69,0.00019726,2]
[375911498,1753781450750,-460.0,0.00019726,2]
[375911499,1753781450759,-3060.23,0.00019726,2]
[375911501,1753781450769,-460.0,0.00019726,2]
[375911503,1753781450778,-460.0,0.00019726,2]
[375911505,1753781450787,-460.0,0.00019726,2]
[375911507,1753781450796,-670.55,0.00019726,2]
[375911509,1753781450806,-568.91960391,0.00019726,2]
[375911511,1753781450815,-1131.79,0.00019726,2]
[375911513,1753781450824,-460.0,0.00019726,2]
[375911515,1753781450833,-460.0,0.00019726,2]
[375911517,1753781450842,-629.77,0.00019726,2]
[375911519,1753781450852,-460.0,0.00019726,2]
[375911521,1753781450861,-785.74,0.00019726,2]
[375911523,1753781450870,-460.0,0.00019726,2]
[375911524,1753781450880,-460.0,0.00019726,2]
[375911526,1753781450889,-647.64,0.00019726,2]
[375911529,1753781450906,-460.0,0.00019726,2]
[375911532,1753781450922,-460.0,0.00019726,2]
[375911535,1753781450936,-460.0,0.00019726,2]
[375911537,1753781450951,-460.0,0.00019726,2]
[375911540,1753781450968,-460.0,0.00019726,2]
[375911542,1753781450984,-460.0,0.00019726,2]
[375911545,1753781451004,-1409.98,0.00019726,2]
[375911547,1753781451019,-460.0,0.00019726,2]
[375911549,1753781451033,-460.0,0.00019726,2]
[375911551,1753781451049,-460.0,0.00019726,2]
[375911552,1753781451061,-460.0,0.00019726,2]
[375911553,1753781451075,-2479.91,0.00019726,2]
[375911554,1753781451091,-572.86947525,0.00019726,2]
[375911555,1753781451108,-460.0,0.00019726,2]
[375911556,1753781451125,-3509.44,0.00019726,2]
[375911557,1753781451143,-182.5,0.00019726,2]
[375911558,1753781451155,-460.0,0.00019726,2]
[375911559,1753781451168,-573.42763998,0.00019726,2]
[375911560,1753781451185,-460.0,0.00019726,2]
[375911561,1753781451198,-1062.43,0.00019726,2]
[375911562,1753781451212,-460.0,0.00019726,2]
[375911563,1753781451224,-464.02717962,0.00019726,2]
[375911564,1753781451236,-460.0,0.00019726,2]
[375911565,1753781451249,-586.95903718,0.00019726,2]
[375911567,1753781451262,-600.2,0.00019726,2]
[375911569,1753781451275,-460.0,0.00019726,2]
[375911572,1753781451290,-460.0,0.00019726,2]
[375911574,1753781451303,-460.0,0.00019726,2]
[375911577,1753781451317,-860.1,0.00019726,2]
[375911579,1753781451330,-460.0,0.00019726,2]
[375911581,1753781451342,-460.0,0.00019726,2]
[375911584,1753781451357,-460.0,0.00019726,2]
[375911586,1753781451370,-460.0,0.00019726,2]
[375911588,1753781451384,-2525.88,0.00019726,2]
[375911591,1753781451396,-460.0,0.00019726,2]
[375911593,1753781451409,-460.0,0.00019726,2]
[375911596,1753781451422,-460.0,0.00019726,2]
[375911598,1753781451435,-460.0,0.00019726,2]
[375911600,1753781451447,-460.0,0.00019726,2]
[375911603,1753781451460,-556.94,0.00019726,2]
[375911605,1753781451474,-460.0,0.00019726,2]
[375911607,1753781451487,-460.0,0.00019726,2]
[375911610,1753781451501,-2339.21,0.00019726,2]
[375911612,1753781451514,-460.0,0.00019726,2]
[375911614,1753781451527,-460.0,0.00019726,2]
[375911617,1753781451540,-2846.11,0.00019726,2]
[375911619,1753781451552,-460.0,0.00019726,2]
[375911621,1753781451565,-460.0,0.00019726,2]
[375911624,1753781451578,-460.0,0.00019726,2]
[375911626,1753781451591,-460.0,0.00019726,2]
[375911629,1753781451604,-1048.58,0.00019726,2]
[375911631,1753781451617,-612.45,0.00019726,2]
[375911633,1753781451630,-460.0,0.00019726,2]
[375911635,1753781451641,-158.44706921,0.00019726,2]
[375911637,1753781451651,-460.0,0.00019726,2]
[375911639,1753781451661,-460.0,0.00019726,2]
[375911641,1753781451670,-460.0,0.00019726,2]
[375911643,1753781451679,-460.0,0.00019726,2]
[375911645,1753781451689,-460.0,0.00019726,2]
[375911647,1753781451699,-2561.88,0.00019726,2]
[375911649,1753781451709,-1075.06,0.00019726,2]
[375911651,1753781451719,-460.0,0.00019726,2]
[375911653,1753781451729,-460.0,0.00019726,2]
[375911655,1753781451739,-460.0,0.00019726,2]
[375911657,1753781451750,-830.09,0.00019726,2]
[375911659,1753781451760,-460.0,0.00019726,2]
[375911661,1753781451770,-963.24,0.00019726,2]
[375911663,1753781451779,-460.0,0.00019726,2]
[375911665,1753781451789,-460.0,0.00019726,2]
[375911685,1753781451963,-460.0,0.00019726,2]
[375911688,1753781451984,-460.0,0.00019726,2]
[375911690,1753781451998,-420.05009567,0.00019726,2]
[375911692,1753781452008,-460.0,0.00019726,2]
[375911694,1753781452017,-460.0,0.00019726,2]
[375911696,1753781452027,-2743.49,0.00019726,2]
[375911698,1753781452036,-460.0,0.00019726,2]
[375911700,1753781452045,-460.0,0.00019726,2]
[375911702,1753781452054,-598.25,0.00019726,2]
[375911704,1753781452064,-460.0,0.00019726,2]
[375911706,1753781452074,-525.32,0.00019726,2]
[375911708,1753781452084,-460.0,0.00019726,2]
[375911710,1753781452094,-1168.26,0.00019726,2]
[375911712,1753781452103,-755.25,0.00019726,2]
[375911714,1753781452113,-460.0,0.00019726,2]
[375911716,1753781452122,-6569.3,0.00019726,2]
[375911717,1753781452132,-460.0,0.00019726,2]
[375911719,1753781452141,-689.14,0.00019726,2]
[375911721,1753781452150,-882.14,0.00019726,2]
[375911723,1753781452160,-500.0,0.00019726,2]
[375911725,1753781452169,-1106.07612033,0.00019759,2]
[375911727,1753781452178,-815.25629604,0.00019761,2]
[375911729,1753781452188,-836.66927797,0.00019762,2]
[375911731,1753781452197,-576.27187642,0.00019773,2]
[375911733,1753781452207,-5097.29533583,0.0001978,2]
[375911735,1753781452216,-151.0,0.000198,2]
[375911737,1753781452226,-1500.0,0.00019868,2]
[375911739,1753781452236,-151.0,0.000199,2]
[375911741,1753781452245,-160.0,0.0001991,2]
[375911744,1753781452255,-168.0,0.0001993,2]
[375911745,1753781452264,-836.66927797,0.00019934,2]
[375911747,1753781452274,-168.0,0.00019957,2]
[375911749,1753781452283,-500.0,0.00019973,2]
[375911751,1753781452292,-9046.06579571,0.0001999,2]
[375911754,1753781452311,-5137.38306436,0.0001999,2]
[375911757,1753781452328,-2911.03945047,0.0001999,2]
[375911759,1753781452339,-741.53047909,0.0001999,2]
[375911761,1753781452352,-754.45986901,0.0001999,2]
[375911763,1753781452365,-501.98940766,0.0001999,2]
[375911780,1753781452515,-460.0,0.00019178,2]
[375911782,1753781452525,-460.0,0.00019178,2]
[375911784,1753781452535,-460.0,0.00019178,2]
[375911786,1753781452544,-45212.83314399,0.0001999,2]
[375911811,1753781452783,-460.0,0.00019178,2]
[375911813,1753781452792,-460.8692714,0.00019178,2]
[375911815,1753781452802,-416.5116436,0.00019178,2]
[375911817,1753781452813,-43.4883564,0.00019178,2]
[375911819,1753781452823,-320.25146194,0.00019452,2]
[375911822,1753781452839,-139.74853806,0.00019452,2]
[375911823,1753781452848,-460.0,0.00019452,2]
[375911826,1753781452860,-460.0,0.00019726,2]
[375911827,1753781452869,-460.0,0.00019726,2]
[375911829,1753781452879,-35694.69878971,0.0001999,2]
[375911831,1753781452888,-500.0,0.00019999,2]
[375911833,1753781452898,-500.0,0.00019999,2]
[375911835,1753781452908,-374.33836661,0.00019999,2]
[375911838,1753781452918,-460.0,0.0002,2]
[375911839,1753781452929,-460.0,0.0002,2]
[375911841,1753781452938,-460.0,0.0002,2]
[375911843,1753781452948,-322.8552139,0.0002,2]
[375911845,1753781452957,-310.48121328,0.0002,2]
[375911848,1753781452968,-460.0,0.0002,2]
[375911850,1753781452978,-460.0,0.0002,2]
[375911851,1753781452990,-460.0,0.0002,2]
[375911854,1753781453002,-460.0,0.0002,2]
[375911856,1753781453012,-332.06771618,0.0002,2]
[375911857,1753781453022,-460.0,0.0002,2]
[375911859,1753781453031,-460.0,0.0002,2]
[375911861,1753781453040,-244.9121723,0.0002,2]
[375911863,1753781453049,-460.0,0.0002,2]
[375911865,1753781453059,-460.0,0.0002,2]
[375911867,1753781453070,-460.0,0.0002,2]
[375911869,1753781453080,-460.0,0.0002,2]
[375911871,1753781453090,-460.0,0.0002,2]
[375911873,1753781453100,-460.0,0.0002,2]
[375911875,1753781453111,-460.0,0.0002,2]
[375911877,1753781453121,-460.0,0.0002,2]
[375911879,1753781453132,-460.0,0.0002,2]
[375911881,1753781453141,-460.0,0.0002,2]
[375911883,1753781453151,-460.0,0.0002,2]
[375911885,1753781453161,-460.0,0.0002,2]
[375911887,1753781453172,-460.0,0.0002,2]
[375911889,1753781453183,-460.0,0.0002,2]
[375911891,1753781453194,-460.0,0.0002,2]
[375911894,1753781453205,-460.0,0.0002,2]
[375911895,1753781453217,-460.0,0.0002,2]
[375911897,1753781453226,-990.09,0.0002,2]
[375911899,1753781453236,-460.0,0.0002,2]
[375911901,1753781453246,-460.0,0.0002,2]
[375911903,1753781453255,-585.43,0.0002,2]
[375911905,1753781453265,-460.0,0.0002,2]
[375911908,1753781453275,-460.0,0.0002,2]
[375911910,1753781453285,-460.0,0.0002,2]
[375911911,1753781453294,-460.0,0.0002,2]
[375911913,1753781453304,-460.0,0.0002,2]
[375911915,1753781453314,-460.0,0.0002,2]
[375911917,1753781453323,-460.0,0.0002,2]
[375911919,1753781453333,-538.32,0.0002,2]
[375911921,1753781453343,-7581.25,0.0002,2]
[375911923,1753781453352,-1112.06,0.0002,2]
[375911925,1753781453363,-460.0,0.0002,2]
[375911927,1753781453372,-460.0,0.0002,2]
[375911929,1753781453382,-460.0,0.0002,2]
[375911931,1753781453391,-460.0,0.0002,2]
[375911933,1753781453402,-460.0,0.0002,2]
[375911935,1753781453413,-2405.1,0.0002,2]
[375911937,1753781453425,-460.0,0.0002,2]
[375911939,1753781453434,-467.64170324,0.0002,2]
[375911941,1753781453444,-460.0,0.0002,2]
[375911943,1753781453454,-460.0,0.0002,2]
[375911945,1753781453463,-460.0,0.0002,2]
[375911947,1753781453472,-460.0,0.0002,2]
[375911949,1753781453482,-460.0,0.0002,2]
[375911951,1753781453492,-460.0,0.0002,2]
[375911953,1753781453501,-296.91070501,0.0002,2]
[375911955,1753781453511,-1564.59,0.0002,2]
[375911957,1753781453520,-460.0,0.0002,2]
[375911959,1753781453530,-460.0,0.0002,2]
[375911961,1753781453540,-460.0,0.0002,2]
[375911963,1753781453550,-302.0766747,0.0002,2]
[375911965,1753781453559,-460.0,0.0002,2]
[375911967,1753781453568,-460.0,0.0002,2]
[375911968,1753781453579,-460.0,0.0002,2]
[375911969,1753781453588,-460.0,0.0002,2]
[375911970,1753781453598,-460.0,0.0002,2]
[375911971,1753781453609,-556.13,0.0002,2]
[375911972,1753781453618,-460.0,0.0002,2]
[375911973,1753781453627,-460.0,0.0002,2]
[375911975,1753781453637,-460.0,0.0002,2]